[Event "Titled Tuesday Blitz May 23 Late 2023"]
[White "Burke, Paul"]
[Black "Martinez, Ayelen"]
[WhiteFideId "2605767"]
[BlackFideId "118702"]
[WhiteElo "1908"]
[BlackElo "2125"]
[Result "0-1"]
[Round "11"]
[TimeControl "180+2"]
[Date "2023.05.23"]
[WhiteClock "0:01:07"]
[BlackClock "0:01:10"]

1. e4 {[%clk 0:03:00]}  c5 {[%clk 0:02:59]} 2. d4 {[%clk 0:03:00]}  cxd4 {[%clk 0:02:58]} 3. c3 {[%clk 0:03:00]}  dxc3 {[%clk 0:02:58]} 4. Nxc3 {[%clk 0:03:00]}  Nc6 {[%clk 0:02:59]} 5. Nf3 {[%clk 0:03:00]}  e6 {[%clk 0:02:59]} 6. Bf4 {[%clk 0:02:59]}  Nge7 {[%clk 0:02:59]} 7. Bd3 {[%clk 0:02:58]}  Ng6 {[%clk 0:02:59]} 8. Bg3 {[%clk 0:02:58]}  Bb4 {[%clk 0:02:55]} 9. Qe2 {[%clk 0:02:57]}  O-O {[%clk 0:02:49]} 10. Rd1 {[%clk 0:02:56]}  Qa5 {[%clk 0:02:39]} 11. h4 {[%clk 0:02:53]}  Bxc3+ {[%clk 0:02:37]} 12. bxc3 {[%clk 0:02:53]}  Qxc3+ {[%clk 0:02:38]} 13. Kf1 {[%clk 0:02:53]}  Nce5 {[%clk 0:01:59]} 14. Nxe5 {[%clk 0:02:47]}  Nxe5 {[%clk 0:01:56]} 15. Bxe5 {[%clk 0:02:36]}  Qxe5 {[%clk 0:01:57]} 16. Rh3 {[%clk 0:02:23]}  b6 {[%clk 0:01:43]} 17. Rg3 {[%clk 0:02:22]}  Bb7 {[%clk 0:01:39]} 18. Qg4 {[%clk 0:02:20]}  f5 {[%clk 0:01:22]} 19. exf5 {[%clk 0:01:30]}  exf5 {[%clk 0:01:23]} 20. Qg5 {[%clk 0:01:26]}  Rae8 {[%clk 0:01:13]} 21. Bc4+ {[%clk 0:01:08]}  Kh8 {[%clk 0:01:11]} 22. Rxd7 {[%clk 0:01:07]}  Qe1# {[%clk 0:01:10]} 0-1


[Site "https://www.chess.com"]

[Event "Titled Tuesday Blitz May 23 Late 2023"]
[White "Harish, Neeraj"]
[Black "Rodriguez Santiago, Jaime"]
[WhiteFideId "30958130"]
[BlackFideId "3100898"]
[WhiteElo "1879"]
[BlackElo "2025"]
[Result "1-0"]
[Round "11"]
[TimeControl "180+2"]
[Date "2023.05.23"]
[WhiteClock "0:00:14"]
[BlackClock "0:00:26"]

1. e4 {[%clk 0:03:00]}  c6 {[%clk 0:02:59]} 2. d4 {[%clk 0:03:00]}  d5 {[%clk 0:02:59]} 3. e5 {[%clk 0:03:00]}  Bf5 {[%clk 0:02:59]} 4. h4 {[%clk 0:03:00]}  h5 {[%clk 0:02:58]} 5. Bd3 {[%clk 0:02:59]}  Bxd3 {[%clk 0:02:59]} 6. Qxd3 {[%clk 0:03:00]}  Qa5+ {[%clk 0:02:59]} 7. Nd2 {[%clk 0:02:59]}  e6 {[%clk 0:02:58]} 8. Nf3 {[%clk 0:03:00]}  Qa6 {[%clk 0:02:57]} 9. c4 {[%clk 0:03:00]}  c5 {[%clk 0:02:55]} 10. O-O {[%clk 0:02:57]}  Nc6 {[%clk 0:02:55]} 11. b3 {[%clk 0:02:37]}  Nh6 {[%clk 0:02:54]} 12. Qb1 {[%clk 0:02:23]}  dxc4 {[%clk 0:02:42]} 13. Nxc4 {[%clk 0:02:21]}  cxd4 {[%clk 0:02:40]} 14. Bb2 {[%clk 0:02:07]}  Nf5 {[%clk 0:02:37]} 15. Rd1 {[%clk 0:02:04]}  Rd8 {[%clk 0:02:34]} 16. Qe4 {[%clk 0:01:51]}  Be7 {[%clk 0:02:22]} 17. g3 {[%clk 0:01:40]}  b5 {[%clk 0:02:10]} 18. Ncd2 {[%clk 0:01:09]}  O-O {[%clk 0:02:09]} 19. Rac1 {[%clk 0:01:09]}  Rc8 {[%clk 0:01:52]} 20. Nxd4 {[%clk 0:00:56]}  Ncxd4 {[%clk 0:01:49]} 21. Bxd4 {[%clk 0:00:56]}  Rxc1 {[%clk 0:01:49]} 22. Rxc1 {[%clk 0:00:57]}  Qxa2 {[%clk 0:01:44]} 23. Rc2 {[%clk 0:00:46]}  Qa5 {[%clk 0:01:34]} 24. Nf3 {[%clk 0:00:36]}  Rd8 {[%clk 0:01:31]} 25. Bc5 {[%clk 0:00:29]}  Bxc5 {[%clk 0:01:25]} 26. Rxc5 {[%clk 0:00:30]}  Qa1+ {[%clk 0:01:17]} 27. Kg2 {[%clk 0:00:27]}  a6 {[%clk 0:01:14]} 28. Rc7 {[%clk 0:00:26]}  Qa3 {[%clk 0:00:58]} 29. Qb7 {[%clk 0:00:17]}  Nh6 {[%clk 0:00:56]} 30. Ng5 {[%clk 0:00:16]}  Rf8 {[%clk 0:00:56]} 31. Nxe6 {[%clk 0:00:16]}  Re8 {[%clk 0:00:53]} 32. Ng5 {[%clk 0:00:15]}  Qxb3 {[%clk 0:00:46]} 33. e6 {[%clk 0:00:14]}  Rxe6 {[%clk 0:00:26]} 34. Rc8+ {[%clk 0:00:14]} 1-0


[Site "https://www.chess.com"]

[Event "Titled Tuesday Blitz May 23 Late 2023"]
[White "Von Buelow, Georg"]
[Black "Luxama, Jacques Muller"]
[WhiteFideId "4620658"]
[BlackFideId "11900113"]
[WhiteElo "2171"]
[BlackElo "1931"]
[Result "1-0"]
[Round "11"]
[TimeControl "180+2"]
[Date "2023.05.23"]
[WhiteClock "0:00:09"]
[BlackClock "0:00:00"]

1. e4 {[%clk 0:02:57]}  c5 {[%clk 0:02:59]} 2. Nf3 {[%clk 0:02:56]}  d6 {[%clk 0:02:59]} 3. d4 {[%clk 0:02:55]}  cxd4 {[%clk 0:03:00]} 4. Nxd4 {[%clk 0:02:56]}  Nf6 {[%clk 0:03:01]} 5. Nc3 {[%clk 0:02:57]}  Nc6 {[%clk 0:03:00]} 6. Bg5 {[%clk 0:02:56]}  e6 {[%clk 0:03:00]} 7. Qd2 {[%clk 0:02:56]}  Bd7 {[%clk 0:03:00]} 8. O-O-O {[%clk 0:02:53]}  a6 {[%clk 0:03:01]} 9. f4 {[%clk 0:02:47]}  Be7 {[%clk 0:03:00]} 10. Nf3 {[%clk 0:02:42]}  Qc7 {[%clk 0:02:59]} 11. Bxf6 {[%clk 0:02:41]}  gxf6 {[%clk 0:02:58]} 12. Kb1 {[%clk 0:02:40]}  O-O-O {[%clk 0:02:57]} 13. Bd3 {[%clk 0:02:39]}  Kb8 {[%clk 0:02:57]} 14. Ne2 {[%clk 0:02:36]}  Rc8 {[%clk 0:02:53]} 15. f5 {[%clk 0:02:34]}  Ne5 {[%clk 0:02:50]} 16. Nxe5 {[%clk 0:02:26]}  fxe5 {[%clk 0:02:45]} 17. Ng3 {[%clk 0:02:13]}  d5 {[%clk 0:02:44]} 18. Rhf1 {[%clk 0:02:06]}  h5 {[%clk 0:02:40]} 19. fxe6 {[%clk 0:01:57]}  fxe6 {[%clk 0:02:40]} 20. Rf7 {[%clk 0:01:55]}  Bd6 {[%clk 0:02:38]} 21. exd5 {[%clk 0:01:47]}  exd5 {[%clk 0:01:55]} 22. Bf5 {[%clk 0:01:46]}  Rcd8 {[%clk 0:01:52]} 23. Qxd5 {[%clk 0:01:44]}  Bc6 {[%clk 0:01:34]} 24. Rxc7 {[%clk 0:01:34]}  Bxd5 {[%clk 0:01:34]} 25. Rd7 {[%clk 0:01:14]}  Rxd7 {[%clk 0:01:32]} 26. Bxd7 {[%clk 0:01:13]}  Bxg2 {[%clk 0:01:07]} 27. Rxd6 {[%clk 0:01:11]}  Kc7 {[%clk 0:01:08]} 28. Rd2 {[%clk 0:01:02]}  h4 {[%clk 0:01:06]} 29. Nf5 {[%clk 0:00:38]}  Bh3 {[%clk 0:01:05]} 30. Rd3 {[%clk 0:00:34]}  Bg4 {[%clk 0:00:59]} 31. Be6 {[%clk 0:00:30]}  Re8 {[%clk 0:00:57]} 32. Rc3+ {[%clk 0:00:29]}  Kb6 {[%clk 0:00:55]} 33. h3 {[%clk 0:00:21]}  Be2 {[%clk 0:00:46]} 34. Bd5 {[%clk 0:00:16]}  Rf8 {[%clk 0:00:45]} 35. Ne3 {[%clk 0:00:14]}  Rf2 {[%clk 0:00:42]} 36. b4 {[%clk 0:00:13]}  Bb5 {[%clk 0:00:40]} 37. Kb2 {[%clk 0:00:13]}  Rh2 {[%clk 0:00:39]} 38. Be6 {[%clk 0:00:11]}  Ka7 {[%clk 0:00:35]} 39. Nd5 {[%clk 0:00:11]}  e4 {[%clk 0:00:31]} 40. Re3 {[%clk 0:00:11]}  Bd3 {[%clk 0:00:30]} 41. Kb3 {[%clk 0:00:07]}  Bxc2+ {[%clk 0:00:28]} 42. Ka3 {[%clk 0:00:07]}  Bd3 {[%clk 0:00:25]} 43. Nc3 {[%clk 0:00:07]}  b5 {[%clk 0:00:16]} 44. Nxe4 {[%clk 0:00:07]}  Bc4 {[%clk 0:00:14]} 45. Bxc4 {[%clk 0:00:07]}  bxc4 {[%clk 0:00:15]} 46. Nd6 {[%clk 0:00:07]}  Rc2 {[%clk 0:00:13]} 47. Ne4 {[%clk 0:00:05]}  Kb6 {[%clk 0:00:13]} 48. Rc3 {[%clk 0:00:05]}  Re2 {[%clk 0:00:11]} 49. Nd6 {[%clk 0:00:05]}  Rh2 {[%clk 0:00:06]} 50. Nxc4+ {[%clk 0:00:05]}  Kb5 {[%clk 0:00:07]} 51. Kb3 {[%clk 0:00:06]}  Rg2 {[%clk 0:00:05]} 52. a4+ {[%clk 0:00:07]}  Kc6 {[%clk 0:00:04]} 53. Ne5+ {[%clk 0:00:07]}  Kd5 {[%clk 0:00:04]} 54. Nd3 {[%clk 0:00:08]}  Kd4 {[%clk 0:00:04]} 55. Nc5 {[%clk 0:00:08]}  Rg3 {[%clk 0:00:04]} 56. Ne6+ {[%clk 0:00:05]}  Ke5 {[%clk 0:00:04]} 57. Nd8 {[%clk 0:00:04]}  Kd4 {[%clk 0:00:04]} 58. Nc6+ {[%clk 0:00:05]}  Kd5 {[%clk 0:00:04]} 59. b5 {[%clk 0:00:05]}  axb5 {[%clk 0:00:04]} 60. axb5 {[%clk 0:00:06]}  Rxc3+ {[%clk 0:00:03]} 61. Kxc3 {[%clk 0:00:06]}  Kc5 {[%clk 0:00:04]} 62. Nd4 {[%clk 0:00:06]}  Kd5 {[%clk 0:00:04]} 63. Kd3 {[%clk 0:00:06]}  Kc5 {[%clk 0:00:03]} 64. Kc3 {[%clk 0:00:06]}  Kd5 {[%clk 0:00:03]} 65. Kb4 {[%clk 0:00:06]}  Ke4 {[%clk 0:00:03]} 66. b6 {[%clk 0:00:06]}  Kxd4 {[%clk 0:00:03]} 67. b7 {[%clk 0:00:07]}  Ke4 {[%clk 0:00:04]} 68. b8=Q {[%clk 0:00:08]}  Kf3 {[%clk 0:00:05]} 69. Qg8 {[%clk 0:00:08]}  Kf4 {[%clk 0:00:04]} 70. Qg4+ {[%clk 0:00:08]}  Ke3 {[%clk 0:00:00]} 71. Qxh4 {[%clk 0:00:09]} 1-0


[Site "https://www.chess.com"]